[Event "28th Hit Open-A 2024"]
[Site "Nova Gorica"]
[Date "2024.01.27"]
[Round "2.34"]
[White "Beber, Anja"]
[Black "Barbir, Petar"]
[Result "0-1"]
[ECO "D00"]
[WhiteElo "1606"]
[BlackElo "1738"]
[Annotator "NA RC COMBH"]
[PlyCount "84"]
[EventDate "2024.01.22"]
[EventType "swiss"]
[EventCountry "SLO"]
[SourceTitle "playchess.com"]
[Source "ChessBase"]
[SourceQuality "1"]
[TimeControl "5400+30"]

1. d4 {[%emt 0:00:07]} Nf6 {[%emt 0:00:11]} 2. Nf3 {[%emt 0:00:12]} g6 {[%emt 0:00:46]} 3. Nc3 {[%emt 0:00:12]} d5 {[%emt 0:01:28]} 4. Bf4 {[%emt 0:00:13]} Bg7 {[%emt 0:00:33]} 5. e3 {[%emt 0:00:16]} O-O {[%emt 0:01:07]} 6. Be2 {[%emt 0:00:17]} h6 {[%emt 0:03:52]} 7. Ne5 {[%emt 0:00:37]} c6 {[%emt 0:03:15]} 8. h4 {[%emt 0:01:56]} Nbd7 {[%emt 0:01:09]} 9. g4 {[%emt 0:02:08]} Nxe5 {[%emt 0:01:27]} 10. Bxe5 {[%emt 0:01:56]} Ne4 {[%emt 0:01:48]} 11. Bxg7 {[%emt 0:02:21]} Nxc3 {[%emt 0:01:22]} 12. bxc3 {[%emt 0:00:21]} Kxg7 {[%emt 0:00:06]} 13. f4 {[%emt 0:00:35]} Qc7 {[%emt 0:02:34]} 14. Bf3 {[%emt 0:03:45]} f6 {[%emt 0:01:53]} 15. Qe2 {[%emt 0:03:53]} e5 {[%emt 0:03:19]} 16. Qh2 {[%emt 0:02:15]} Qa5 {[%emt 0:03:37]} 17. Qd2 {[%emt 0:02:32]} exf4 {[%emt 0:00:16]} 18. exf4 {[%emt 0:00:15]} Re8+ {[%emt 0:00:11]} 19. Kf2 {[%emt 0:00:18]} Bd7 {[%emt 0:01:27]} 20. Rh2 {[%emt 0:03:52]} Rad8 {[%emt 0:04:35]} 21. f5 {[%emt 0:02:06]} c5 {[%emt 0:10:34]} 22. fxg6 {[%emt 0:06:23]} cxd4 {[%emt 0:00:32]} 23. g5 {[%emt 0:03:10]} dxc3 {[%emt 0:07:08]} 24. gxf6+ {[%emt 0:02:07]} Kxf6 {[%emt 0:01:48]} 25. Qf4+ {[%emt 0:00:50]} Bf5 {[%emt 0:00:14]} 26. Qxh6 {[%emt 0:01:41]} Qc5+ {[%emt 0:00:39]} 27. Kg2 {[%emt 0:00:24]} Qe3 {[%emt 0:02:47]} 28. Qg5+ {[%emt 0:04:14]} Qxg5+ {[%emt 0:00:13]} 29. hxg5+ {[%emt 0:00:06]} Kxg5 {[%emt 0:03:29]} 30. Rg1 {[%emt 0:01:19]} Bxg6 {[%emt 0:07:19]} 31. Kf2+ {[%emt 0:00:40]} Kf5 {[%emt 0:00:35]} 32. Rhg2 {[%emt 0:00:37]} Bf7 {[%emt 0:04:17]} 33. Rg7 {[%emt 0:00:46]} Kf6 {[%emt 0:01:29]} 34. Rh7 {[%emt 0:00:31]} Rh8 {[%emt 0:01:17]} 35. Rhh1 {[%emt 0:05:36]} Rxh1 {[%emt 0:00:43]} 36. Bxh1 {[%emt 0:00:14]} b5 {[%emt 0:02:20]} 37. Rg3 {[%emt 0:01:41]} d4 {[%emt 0:00:37]} 38. Rf3+ {[%emt 0:00:59]} Ke7 {[%emt 0:00:14]} 39. Rf5 {[%emt 0:00:17]} Bc4 {[%emt 0:01:26]} 40. Be4 {[%emt 0:01:11]} Rf8 {[%emt 0:00:45]} 41. a3 {[%emt 0:00:37]} Rxf5+ {[%emt 0:00:06]} 42. Bxf5 {[%emt 0:00:10]} Kd6 {[%emt 0:01:06]} 0-1

[Event "28th Hit Open-A 2024"]
[Site "Nova Gorica"]
[Date "2024.01.27"]
[Round "2.35"]
[White "Plaskan, Jure"]
[Black "Kejzar, Petra"]
[Result "1-0"]
[ECO "B32"]
[WhiteElo "2262"]
[BlackElo "2025"]
[Annotator "NA RC"]
[PlyCount "117"]
[EventDate "2024.01.22"]
[EventType "swiss"]
[EventCountry "SLO"]
[SourceTitle "playchess.com"]
[Source "ChessBase"]
[SourceQuality "1"]
[TimeControl "5400+30"]

1. e4 {[%emt 0:00:07]} c5 {[%emt 0:00:25]} 2. Nf3 {[%emt 0:00:05]} Nc6 {[%emt 0:00:18]} 3. d4 {[%emt 0:00:06]} cxd4 {[%emt 0:00:04]} 4. Nxd4 {[%emt 0:00:05]} e5 {[%emt 0:00:06]} 5. Nb5 {[%emt 0:00:08]} d6 {[%emt 0:00:06]} 6. N1c3 {[%emt 0:01:45]} a6 {[%emt 0:02:45]} 7. Na3 {[%emt 0:00:03]} Be7 {[%emt 0:02:22]} 8. Nc4 {[%emt 0:06:28]} b5 {[%emt 0:02:47]} 9. Ne3 {[%emt 0:00:07]} Nf6 {[%emt 0:00:28]} 10. Bd3 {[%emt 0:01:12]} O-O {[%emt 0:05:06]} 11. O-O {[%emt 0:00:05]} Nb4 {[%emt 0:03:08]} 12. a4 {[%emt 0:01:50]} Bb7 {[%emt 0:06:52]} 13. axb5 {[%emt 0:03:53]} axb5 {[%emt 0:00:33]} 14. Rxa8 {[%emt 0:00:04]} Bxa8 {[%emt 0:01:58]} 15. Bxb5 {[%emt 0:14:24]} Nxe4 {[%emt 0:05:25]} 16. Nxe4 {[%emt 0:22:16]} Bxe4 {[%emt 0:00:07]} 17. c3 {[%emt 0:03:45]} Qb6 {[%emt 0:08:32]} 18. Bc4 {[%emt 0:02:40]} Nc6 {[%emt 0:09:12]} 19. Qg4 {[%emt 0:02:15]} Bg6 {[%emt 0:01:47]} 20. h4 {[%emt 0:22:48]} Kh8 {[%emt 0:03:08]} 21. h5 {[%emt 0:00:03]} Bb1 {[%emt 0:08:34]} 22. h6 {[%emt 0:12:55]} g6 {[%emt 0:03:38]} 23. Nd5 {[%emt 0:02:10]} Qd8 {[%emt 0:04:48]} 24. Bb5 {[%emt 0:01:30]} Bf5 {[%emt 0:02:16]} 25. Qe2 {[%emt 0:01:28]} Nb8 {[%emt 0:02:49]} 26. f4 {[%emt 0:00:13]} f6 {[%emt 0:01:20]} 27. Be3 {[%emt 0:00:03]} Nd7 {[%emt 0:01:02]} 28. Ra1 {[%emt 0:00:17]} Be6 {[%emt 0:03:03]} 29. Nb4 {[%emt 0:00:13]} exf4 {[%emt 0:02:15]} 30. Nc6 {[%emt 0:01:03]} Qe8 {[%emt 0:00:17]} 31. Bxf4 {[%emt 0:00:19]} Qf7 {[%emt 0:02:15]} 32. Ra7 {[%emt 0:00:48]} Bd8 {[%emt 0:00:49]} 33. Kh1 {[%emt 0:00:57]} Bb6 {[%emt 0:00:48]} 34. Rb7 {[%emt 0:00:41]} Ra8 {[%emt 0:01:17]} 35. Nd4 {[%emt 0:00:36]} Bxd4 {[%emt 0:09:11]} 36. cxd4 {[%emt 0:00:02]} g5 {[%emt 0:00:09]} 37. d5 {[%emt 0:00:51]} Bf5 {[%emt 0:02:54]} 38. Bxd7 {[%emt 0:00:09]} Bxd7 {[%emt 0:00:48]} 39. Bxd6 {[%emt 0:00:12]} Qg6 {[%emt 0:02:34]} 40. Rb8+ {[%emt 0:00:54]} Rxb8 {[%emt 0:00:03]} 41. Bxb8 {[%emt 0:00:05]} Qxh6+ {[%emt 0:00:21]} 42. Kg1 {[%emt 0:00:01]} Qf8 {[%emt 0:00:12]} 43. Ba7 {[%emt 0:00:35]} Qd6 {[%emt 0:00:22]} 44. Qe4 {[%emt 0:01:25]} Kg7 {[%emt 0:01:31]} 45. Bd4 {[%emt 0:00:33]} Bc8 {[%emt 0:01:19]} 46. b4 {[%emt 0:00:48]} Bb7 {[%emt 0:01:01]} 47. Qf5 {[%emt 0:00:27]} h6 {[%emt 0:00:18]} 48. b5 {[%emt 0:00:19]} Bxd5 {[%emt 0:01:57]} 49. Bxf6+ {[%emt 0:00:06]} Qxf6 {[%emt 0:00:06]} 50. Qxd5 {[%emt 0:00:03]} Qb6+ {[%emt 0:00:20]} 51. Kf1 {[%emt 0:00:14]} Qf6+ {[%emt 0:00:10]} 52. Ke2 {[%emt 0:00:15]} Qb2+ {[%emt 0:00:22]} 53. Ke3 {[%emt 0:00:19]} Qc3+ {[%emt 0:00:30]} 54. Ke4 {[%emt 0:00:30]} Qe1+ {[%emt 0:01:11]} 55. Kd4 {[%emt 0:01:08]} Qf2+ {[%emt 0:00:07]} 56. Kc4 {[%emt 0:00:09]} Qc2+ {[%emt 0:01:15]} 57. Kb4 {[%emt 0:00:04]} Qb2+ {[%emt 0:00:30]} 58. Kc5 {[%emt 0:00:16]} Qf2+ {[%emt 0:00:35]} 59. Qd4+ {[%emt 0:00:20]} 1-0

[Event "28th Hit Open-A 2024"]
[Site "Nova Gorica"]
[Date "2024.01.27"]
[Round "2.36"]
[White "Labrovic, Jakov"]
[Black "Vodnik, Val"]
[Result "1-0"]
[ECO "A01"]
[WhiteElo "1925"]
[BlackElo "1661"]
[Annotator "TA"]
[PlyCount "41"]
[EventDate "2024.01.22"]
[EventType "swiss"]
[EventCountry "SLO"]
[SourceTitle "playchess.com"]
[Source "ChessBase"]
[SourceQuality "1"]
[TimeControl "5400+30"]

{[%evp 9,41,-6,9,-5,37,20,85,62,118,48,113,113,106,109,112,94,130,86,88,44,38,51,29,25,104,0,8,-47,0,-16,29974,29975,29994,29995]} 1. b3 {[%emt 0:00:04]} d5 {[%emt 0:00:23]} 2. Bb2 {[%emt 0:00:09]} c5 {[%emt 0:00:15]} 3. e3 {[%emt 0:00:11]} Nc6 {[%emt 0:00:21]} 4. Bb5 {[%emt 0:00:07]} Qc7 {[%emt 0:00:32]} 5. f4 {[%emt 0:00:50]} Bf5 {[%emt 0:01:46]} 6. Nf3 {[%emt 0:00:39]} Nf6 {[%emt 0:01:45]} (6... e6 {simplifies} 7. Bxc6+ Qxc6 8. Qe2 Bxc2 9. Nc3 Bg6) 7. Ne5 {[%emt 0:00:18]} Ne4 {[%emt 0:04:38]} (7... Bd7 $11 {keeps the balance.}) 8. O-O {[%emt 0:13:37] White is better.} h5 {[%emt 0:03:06]} (8... Nd6 $14) 9. Nc3 {[%emt 0:02:22]} ({White should try} 9. d3 $16 Nd6 10. Bxc6+ bxc6 11. Nd2) 9... e6 {[%emt 0:01:30]} (9... Nxc3 $14 10. Bxc3 f6) 10. Nxe4 $16 {[%emt 0:03:50]} Bxe4 {[%emt 0:00:25]} 11. d3 {[%emt 0:00:17]} Bf5 {[%emt 0:00:48]} 12. Qe1 {[%emt 0:01:25] aiming for e4. White is more active.} O-O-O {[%emt 0:07:58]} 13. e4 {[%emt 0:05:47] Hoping for Bxc6.} Bh7 {[%emt 0:01:13]} 14. exd5 {[%emt 0:17:22]} exd5 {[%emt 0:00:27]} 15. Nxc6 {[%emt 0:06:43]} bxc6 {[%emt 0:00:05]} 16. Ba4 $36 {[%emt 0:00:11][%mdl 2048] White has some pressure.} f6 {[%emt 0:02:17] [#]} (16... Bf5 $11) 17. Qe6+ {[%emt 0:01:52]} ({Better is} 17. Bc3 $1 $16) 17... Kb7 $11 {[%emt 0:00:25] [#]} 18. b4 {[%emt 0:04:37]} Bd6 {[%emt 0:07:00]} (18... cxb4 $15 19. a3 Bc5+ 20. Kh1 a5) 19. bxc5 {[%emt 0:00:49]} Bxf4 $2 {[%emt 0:00:25][%mdl 8192] [#]} (19... Bxc5+ $11 20. Kh1 Qd7) 20. Rxf4 $1 {[%emt 0:03:53][%mdl 512]} Rhe8 {[%emt 0:00:21]} (20... Qd7 21. Qxd7+) 21. Rb4+ {[%emt 0:00:39] Weighted Error Value: White=0.28 (precise) /Black=0.66.  Loses game:     	---       	Black=1      Mistake:       	White=3     	Black=5      Inaccurate:     	White=2     	Black=1      OK:         	White=4     	Black=2      Best:        	---       	Black=2      Brilliant:      	White=1     	---} 1-0

[Event "28th Hit Open-A 2024"]
[Site "Nova Gorica"]
[Date "2024.01.27"]
[Round "2.37"]
[White "Zlatanovic, Marcus"]
[Black "Petrovcic, Cvetko"]
[Result "0-1"]
[ECO "C40"]
[WhiteElo "1745"]
[BlackElo "1611"]
[Annotator "NA RC COMBH"]
[PlyCount "84"]
[EventDate "2024.01.22"]
[EventType "swiss"]
[EventCountry "SLO"]
[SourceTitle "playchess.com"]
[Source "ChessBase"]
[SourceQuality "1"]
[TimeControl "5400+30"]

1. e4 {[%emt 0:00:04]} e5 {[%emt 0:01:12]} 2. Nf3 {[%emt 0:00:07]} Bc5 {[%emt 0:01:10]} 3. Nxe5 {[%emt 0:01:06]} Nc6 {[%emt 0:02:11]} 4. Nxc6 {[%emt 0:03:59]} dxc6 {[%emt 0:01:29]} 5. d3 {[%emt 0:00:21]} Nf6 {[%emt 0:00:53]} 6. h3 {[%emt 0:00:53]} O-O {[%emt 0:00:25]} 7. Be2 {[%emt 0:01:59]} b5 {[%emt 0:06:33]} 8. O-O {[%emt 0:03:28]} Nd7 {[%emt 0:04:19]} 9. d4 {[%emt 0:03:26]} Bb6 {[%emt 0:00:17]} 10. Be3 {[%emt 0:00:52]} a6 {[%emt 0:01:50]} 11. c4 {[%emt 0:24:08]} bxc4 {[%emt 0:10:19]} 12. Bxc4 {[%emt 0:00:17]} Kh8 {[%emt 0:01:59]} 13. Nc3 {[%emt 0:03:49]} Nf6 {[%emt 0:08:19]} 14. Qd2 {[%emt 0:07:09]} Qd7 {[%emt 0:05:01]} 15. Rad1 {[%emt 0:05:44]} Bb7 {[%emt 0:00:40]} 16. f3 {[%emt 0:06:09]} Rad8 {[%emt 0:02:19]} 17. Qf2 {[%emt 0:02:55]} Qc8 {[%emt 0:12:43]} 18. d5 {[%emt 0:08:56]} Bxe3 {[%emt 0:00:14]} 19. Qxe3 {[%emt 0:00:07]} cxd5 {[%emt 0:00:41]} 20. Nxd5 {[%emt 0:00:06]} Nxd5 {[%emt 0:00:56]} 21. Bxd5 {[%emt 0:00:08]} Bxd5 {[%emt 0:00:59]} 22. Rxd5 {[%emt 0:00:40]} Rxd5 {[%emt 0:00:37]} 23. exd5 {[%emt 0:00:06]} Re8 {[%emt 0:02:28]} 24. Qc5 {[%emt 0:09:28]} Qd7 {[%emt 0:08:30]} 25. Rc1 {[%emt 0:08:15]} Rd8 {[%emt 0:00:09]} 26. Re1 {[%emt 0:01:26]} g6 {[%emt 0:04:54]} 27. Re5 {[%emt 0:05:11]} Kg7 {[%emt 0:00:36]} 28. Re7 {[%emt 0:02:47]} Qf5 {[%emt 0:05:31]} 29. Rxc7 {[%emt 0:00:49]} Rxd5 {[%emt 0:00:03]} 30. Qc3+ {[%emt 0:00:14]} Kh6 {[%emt 0:00:56]} 31. Qe3+ {[%emt 0:00:31]} Kg7 {[%emt 0:00:30]} 32. Qc3+ {[%emt 0:00:43]} Kh6 {[%emt 0:00:33]} 33. Qe3+ {[%emt 0:00:26]} Kg7 {[%emt 0:00:02]} 34. Kh2 {[%emt 0:00:29]} h5 {[%emt 0:03:55]} 35. Qc3+ {[%emt 0:00:19]} Kh6 {[%emt 0:00:21]} 36. Qe3+ {[%emt 0:00:49]} Kh7 {[%emt 0:00:14]} 37. Rc1 {[%emt 0:00:31]} Qf6 {[%emt 0:01:07]} 38. b3 {[%emt 0:00:31]} Qd6+ {[%emt 0:00:15]} 39. Kh1 {[%emt 0:00:23]} Qg3 {[%emt 0:00:30]} 40. Re1 {[%emt 0:00:37]} Rg5 {[%emt 0:00:28]} 41. Qd2 {[%emt 0:00:19]} Rf5 {[%emt 0:00:16]} 42. Qb2 {[%emt 0:00:40]} Qxe1+ {[%emt 0:00:25]} 0-1

[Event "28th Hit Open-A 2024"]
[Site "Nova Gorica"]
[Date "2024.01.27"]
[Round "2.38"]
[White "Bajec, Borut"]
[Black "Cortese, Lina"]
[Result "1/2-1/2"]
[ECO "A85"]
[WhiteElo "1703"]
[BlackElo "1582"]
[Annotator "NA RC COMBH"]
[PlyCount "120"]
[EventDate "2024.01.22"]
[EventType "swiss"]
[EventCountry "SLO"]
[SourceTitle "playchess.com"]
[Source "ChessBase"]
[SourceQuality "1"]
[TimeControl "5400+30"]

1. d4 {[%emt 0:00:07]} e6 {[%emt 0:00:08]} 2. c4 {[%emt 0:00:24]} f5 {[%emt 0:00:19]} 3. Nf3 {[%emt 0:00:25]} Nf6 {[%emt 0:00:15]} 4. Nc3 {[%emt 0:00:28]} d5 {[%emt 0:00:29]} 5. e3 {[%emt 0:00:51]} c6 {[%emt 0:00:26]} 6. Bd3 {[%emt 0:00:43]} Bd6 {[%emt 0:00:26]} 7. O-O {[%emt 0:00:53]} O-O {[%emt 0:00:20]} 8. b3 {[%emt 0:01:00]} Ne4 {[%emt 0:01:11]} 9. Bb2 {[%emt 0:00:51]} b6 {[%emt 0:01:19]} 10. cxd5 {[%emt 0:01:41]} exd5 {[%emt 0:02:08]} 11. Rc1 {[%emt 0:00:26]} Bb7 {[%emt 0:00:24]} 12. Ne2 {[%emt 0:03:30]} Nd7 {[%emt 0:02:45]} 13. Ne5 {[%emt 0:05:10]} Rc8 {[%emt 0:05:31]} 14. f3 {[%emt 0:02:20]} Ng5 {[%emt 0:00:55]} 15. Nf4 {[%emt 0:00:49]} Qe7 {[%emt 0:01:15]} 16. h4 {[%emt 0:01:53]} Ne6 {[%emt 0:08:03]} 17. Qe1 {[%emt 0:02:35]} Nxe5 {[%emt 0:13:18]} 18. dxe5 {[%emt 0:04:35]} Bc7 {[%emt 0:00:23]} 19. Nxe6 {[%emt 0:01:36]} Qxe6 {[%emt 0:00:31]} 20. f4 {[%emt 0:00:13]} c5 {[%emt 0:01:29]} 21. Qf2 {[%emt 0:04:06]} Qg6 {[%emt 0:05:00]} 22. Kh2 {[%emt 0:03:05]} Rcd8 {[%emt 0:02:28]} 23. Rg1 {[%emt 0:02:18]} Qe6 {[%emt 0:04:09]} 24. Qf3 {[%emt 0:04:18]} Rd7 {[%emt 0:00:41]} 25. Qe2 {[%emt 0:03:00]} Bd8 {[%emt 0:03:13]} 26. g3 {[%emt 0:02:10]} Qh6 {[%emt 0:02:53]} 27. Kh3 {[%emt 0:00:39]} g5 {[%emt 0:00:42]} 28. fxg5 {[%emt 0:04:17]} Bxg5 {[%emt 0:00:27]} 29. Rce1 {[%emt 0:00:49]} Bd8 {[%emt 0:02:12]} 30. Qf2 {[%emt 0:01:19]} Bc8 {[%emt 0:03:17]} 31. Bc1 {[%emt 0:07:29]} Qe6 {[%emt 0:00:29]} 32. Qf4 {[%emt 0:00:34]} Rg7 {[%emt 0:01:26]} 33. Be2 {[%emt 0:02:31]} Bc7 {[%emt 0:00:53]} 34. Bb2 {[%emt 0:00:09]} Re8 {[%emt 0:00:39]} 35. Rd1 {[%emt 0:01:22]} Bxe5 {[%emt 0:01:35]} 36. Bxe5 {[%emt 0:00:59]} Qxe5 {[%emt 0:00:10]} 37. Bb5 {[%emt 0:00:51]} Qxf4 {[%emt 0:01:00]} 38. exf4 {[%emt 0:00:12]} Rd8 {[%emt 0:01:15]} 39. Rge1 {[%emt 0:00:45]} Kf8 {[%emt 0:00:54]} 40. Re5 {[%emt 0:01:45]} d4 {[%emt 0:00:55]} 41. Bd3 {[%emt 0:00:59]} Rf7 {[%emt 0:01:26]} 42. Rde1 {[%emt 0:00:42]} Kg7 {[%emt 0:03:40]} 43. Kg2 {[%emt 0:00:40]} Kf6 {[%emt 0:00:17]} 44. Kf2 {[%emt 0:00:19]} Rdf8 {[%emt 0:00:33]} 45. Bc4 {[%emt 0:01:49]} Rc7 {[%emt 0:00:50]} 46. a4 {[%emt 0:02:53]} Rd8 {[%emt 0:00:44]} 47. Bd3 {[%emt 0:00:39]} Rg7 {[%emt 0:01:18]} 48. Bc4 {[%emt 0:02:17]} d3 {[%emt 0:04:01]} 49. Rd1 {[%emt 0:00:51]} d2 {[%emt 0:00:30]} 50. Re2 {[%emt 0:00:31]} Rgd7 {[%emt 0:02:28]} 51. Re6+ {[%emt 0:02:21]} Kg7 {[%emt 0:00:21]} 52. Ke2 {[%emt 0:02:09]} Rd4 {[%emt 0:00:44]} 53. Re7+ {[%emt 0:00:45]} Kh6 {[%emt 0:00:10]} 54. Kf2 {[%emt 0:01:44]} R8d7 {[%emt 0:01:06]} 55. Re6+ {[%emt 0:00:19]} Kg7 {[%emt 0:01:05]} 56. Re5 {[%emt 0:00:14]} Kf6 {[%emt 0:00:37]} 57. Re6+ {[%emt 0:00:48]} Kg7 {[%emt 0:00:38]} 58. Re5 {[%emt 0:00:09]} Kf6 {[%emt 0:02:38]} 59. Re6+ {[%emt 0:00:20]} Kg7 {[%emt 0:00:49]} 60. Re5 {[%emt 0:00:04]} Kf6 {[%emt 0:03:52]} 1/2-1/2

[Event "28th Hit Open-A 2024"]
[Site "Nova Gorica"]
[Date "2024.01.27"]
[Round "2.39"]
[White "Gergolet, Jan"]
[Black "Guid, Taja"]
[Result "1-0"]
[ECO "B23"]
[WhiteElo "1632"]
[BlackElo "1698"]
[Annotator "NA RC COMBH"]
[PlyCount "77"]
[EventDate "2024.01.22"]
[EventType "swiss"]
[EventCountry "SLO"]
[SourceTitle "playchess.com"]
[Source "ChessBase"]
[SourceQuality "1"]
[TimeControl "5400+30"]

1. e4 {[%emt 0:00:42]} c5 {[%emt 0:00:05]} 2. Nc3 {[%emt 0:00:33]} e6 {[%emt 0:02:17]} 3. d4 {[%emt 0:00:20]} cxd4 {[%emt 0:00:38]} 4. Qxd4 {[%emt 0:00:03]} Nc6 {[%emt 0:00:11]} 5. Qd2 {[%emt 0:00:02]} a6 {[%emt 0:03:48]} 6. b3 {[%emt 0:00:39]} Nf6 {[%emt 0:00:43]} 7. Bb2 {[%emt 0:00:15]} Bb4 {[%emt 0:01:20]} 8. Bd3 {[%emt 0:02:05]} b5 {[%emt 0:09:52]} 9. Nge2 {[%emt 0:06:27]} Bb7 {[%emt 0:01:12]} 10. O-O-O {[%emt 0:01:55]} Qe7 {[%emt 0:02:57]} 11. Kb1 {[%emt 0:02:56]} O-O {[%emt 0:06:39]} 12. Qg5 {[%emt 0:11:30]} h6 {[%emt 0:03:17]} 13. Qg3 {[%emt 0:09:47]} Nh5 {[%emt 0:09:27]} 14. Qh3 {[%emt 0:03:29]} Nf6 {[%emt 0:00:46]} 15. f4 {[%emt 0:11:11]} d5 {[%emt 0:05:08]} 16. exd5 {[%emt 0:03:34]} exd5 {[%emt 0:15:16]} 17. Nxd5 {[%emt 0:15:10]} Nxd5 {[%emt 0:00:14]} 18. Qf5 {[%emt 0:00:07]} g6 {[%emt 0:01:21]} 19. Qxd5 {[%emt 0:00:08]} Rad8 {[%emt 0:02:20]} 20. Qe4 {[%emt 0:03:28]} Qc7 {[%emt 0:06:04]} 21. f5 {[%emt 0:04:55]} Nd4 {[%emt 0:18:48]} 22. Qh4 {[%emt 0:03:51]} Nxe2 {[%emt 0:00:16]} 23. Qxb4 {[%emt 0:00:32]} Nf4 {[%emt 0:00:42]} 24. Qd2 {[%emt 0:15:05]} g5 {[%emt 0:05:23]} 25. h4 {[%emt 0:00:53]} f6 {[%emt 0:01:04]} 26. hxg5 {[%emt 0:00:15]} hxg5 {[%emt 0:00:06]} 27. Rh6 {[%emt 0:00:56]} Qg7 {[%emt 0:00:57]} 28. Rdh1 {[%emt 0:01:39]} Bxg2 {[%emt 0:00:30]} 29. R1h2 {[%emt 0:01:42]} Be4 {[%emt 0:01:05]} 30. Qc3 {[%emt 0:00:40]} Bxd3 {[%emt 0:00:55]} 31. cxd3 {[%emt 0:00:13]} Rxd3 {[%emt 0:00:09]} 32. Qc6 {[%emt 0:00:48]} Rd1+ {[%emt 0:01:06]} 33. Kc2 {[%emt 0:00:02]} Rfd8 {[%emt 0:01:24]} 34. Rh8+ {[%emt 0:00:36]} Kf7 {[%emt 0:00:38]} 35. Rxd8 {[%emt 0:00:55]} Rxd8 {[%emt 0:00:34]} 36. Qc7+ {[%emt 0:00:14]} Kf8 {[%emt 0:00:38]} 37. Qxd8+ {[%emt 0:00:26]} Kf7 {[%emt 0:00:04]} 38. Qd7+ {[%emt 0:00:14]} Kf8 {[%emt 0:00:05]} 39. Ba3+ {[%emt 0:00:09]} 1-0

[Event "28th Hit Open-A 2024"]
[Site "Nova Gorica"]
[Date "2024.01.27"]
[Round "2.40"]
[White "Gratton, Damjan"]
[Black "Mulec, Dejan"]
[Result "0-1"]
[ECO "B08"]
[WhiteElo "1691"]
[BlackElo "1577"]
[Annotator "NA RC COMBH"]
[PlyCount "76"]
[EventDate "2024.01.22"]
[EventType "swiss"]
[EventCountry "SLO"]
[SourceTitle "playchess.com"]
[Source "ChessBase"]
[SourceQuality "1"]
[TimeControl "5400+30"]

1. e4 {[%emt 0:00:10]} d6 {[%emt 0:00:09]} 2. d4 {[%emt 0:01:59]} Nf6 {[%emt 0:00:10]} 3. Nc3 {[%emt 0:00:28]} g6 {[%emt 0:00:11]} 4. Nf3 {[%emt 0:00:19]} Bg7 {[%emt 0:00:17]} 5. Be2 {[%emt 0:00:42]} O-O {[%emt 0:01:21]} 6. O-O {[%emt 0:01:02]} Bg4 {[%emt 0:00:57]} 7. h3 {[%emt 0:01:00]} Bxf3 {[%emt 0:00:28]} 8. Bxf3 {[%emt 0:00:13]} Nc6 {[%emt 0:00:50]} 9. Be3 {[%emt 0:01:35]} e5 {[%emt 0:00:58]} 10. d5 {[%emt 0:01:33]} Ne7 {[%emt 0:00:28]} 11. Qd2 {[%emt 0:00:49]} Nd7 {[%emt 0:01:27]} 12. Bh6 {[%emt 0:09:15]} f5 {[%emt 0:04:46]} 13. exf5 {[%emt 0:00:47]} Nxf5 {[%emt 0:02:05]} 14. Bxg7 {[%emt 0:02:49]} Kxg7 {[%emt 0:01:47]} 15. Ne4 {[%emt 0:00:22]} h6 {[%emt 0:02:53]} 16. Bg4 {[%emt 0:01:37]} Nf6 {[%emt 0:12:19]} 17. Bxf5 {[%emt 0:04:12]} gxf5 {[%emt 0:00:32]} 18. Ng3 {[%emt 0:04:32]} Qd7 {[%emt 0:02:52]} 19. c4 {[%emt 0:05:10]} f4 {[%emt 0:01:41]} 20. Ne2 {[%emt 0:00:49]} Qf5 {[%emt 0:03:34]} 21. Kh2 {[%emt 0:03:18]} h5 {[%emt 0:05:14]} 22. f3 {[%emt 0:03:27]} h4 {[%emt 0:03:20]} 23. Rac1 {[%emt 0:01:51]} Rf7 {[%emt 0:02:09]} 24. c5 {[%emt 0:01:51]} Kh8 {[%emt 0:02:53]} 25. cxd6 {[%emt 0:00:45]} cxd6 {[%emt 0:00:20]} 26. Rc4 {[%emt 0:01:54]} Rg8 {[%emt 0:01:22]} 27. Rf2 {[%emt 0:03:06]} Rfg7 {[%emt 0:02:54]} 28. Nc3 {[%emt 0:01:23]} Rg3 {[%emt 0:07:02]} 29. Rc7 {[%emt 0:05:09]} Qg6 {[%emt 0:08:04]} 30. Rxb7 {[%emt 0:12:42]} Rxh3+ {[%emt 0:01:10]} 31. Kg1 {[%emt 0:00:13]} Qg3 {[%emt 0:02:36]} 32. Ne2 {[%emt 0:02:46]} Qh2+ {[%emt 0:01:56]} 33. Kf1 {[%emt 0:00:03]} Qh1+ {[%emt 0:02:46]} 34. Ng1 {[%emt 0:00:04]} Rhg3 {[%emt 0:01:27]} 35. Qc2 {[%emt 0:06:38]} h3 {[%emt 0:02:20]} 36. Qf5 {[%emt 0:00:19]} hxg2+ {[%emt 0:00:55]} 37. Ke2 {[%emt 0:00:26]} R3g6 {[%emt 0:03:22]} 38. Qh3+ {[%emt 0:01:28]} Rh6 {[%emt 0:02:53]} 0-1

[Event "28th Hit Open-A 2024"]
[Site "Nova Gorica"]
[Date "2024.01.27"]
[Round "2.41"]
[White "Cokan, Mirko"]
[Black "Papler, Peter"]
[Result "0-1"]
[ECO "B07"]
[WhiteElo "1614"]
[BlackElo "1691"]
[Annotator "NA RC COMBH"]
[PlyCount "74"]
[EventDate "2024.01.22"]
[EventType "swiss"]
[EventCountry "SLO"]
[SourceTitle "playchess.com"]
[Source "ChessBase"]
[SourceQuality "1"]
[TimeControl "5400+30"]

1. e4 {[%emt 0:00:38]} d6 {[%emt 0:00:09]} 2. c4 {[%emt 0:00:48]} Nf6 {[%emt 0:00:08]} 3. Nc3 {[%emt 0:00:48]} c6 {[%emt 0:00:24]} 4. Be2 {[%emt 0:01:04]} e5 {[%emt 0:00:32]} 5. Nf3 {[%emt 0:01:46]} Be7 {[%emt 0:00:52]} 6. h3 {[%emt 0:02:31]} Qc7 {[%emt 0:00:23]} 7. O-O {[%emt 0:01:32]} Nbd7 {[%emt 0:00:25]} 8. d3 {[%emt 0:03:37]} h6 {[%emt 0:00:32]} 9. b3 {[%emt 0:02:40]} Nf8 {[%emt 0:00:58]} 10. Bd2 {[%emt 0:00:53]} g5 {[%emt 0:01:26]} 11. Nh2 {[%emt 0:02:16]} Ng6 {[%emt 0:00:26]} 12. Bg4 {[%emt 0:08:17]} Nxg4 {[%emt 0:03:25]} 13. Nxg4 {[%emt 0:00:12]} Nf4 {[%emt 0:01:26]} 14. Bxf4 {[%emt 0:03:02]} gxf4 {[%emt 0:00:13]} 15. f3 {[%emt 0:01:03]} h5 {[%emt 0:01:08]} 16. Nh2 {[%emt 0:01:49]} Rg8 {[%emt 0:01:30]} 17. Kh1 {[%emt 0:00:29]} Be6 {[%emt 0:00:22]} 18. Rc1 {[%emt 0:01:41]} Qd7 {[%emt 0:03:06]} 19. Qe2 {[%emt 0:04:44]} Bd8 {[%emt 0:00:25]} 20. b4 {[%emt 0:02:55]} Bb6 {[%emt 0:04:19]} 21. Rc2 {[%emt 0:03:01]} Bd4 {[%emt 0:03:10]} 22. Qe1 {[%emt 0:02:57]} Qe7 {[%emt 0:03:19]} 23. Ne2 {[%emt 0:01:00]} Be3 {[%emt 0:00:13]} 24. Nc3 {[%emt 0:06:14]} Qg5 {[%emt 0:05:13]} 25. g4 {[%emt 0:07:59]} fxg3 {[%emt 0:01:17]} 26. Rg2 {[%emt 0:00:10]} Bxh3 {[%emt 0:00:43]} 27. Rfg1 {[%emt 0:07:02]} Bxg1 {[%emt 0:02:03]} 28. f4 {[%emt 0:04:36]} Bxg2+ {[%emt 0:03:47]} 29. Kxg2 {[%emt 0:02:54]} Qxf4 {[%emt 0:00:12]} 30. Nf3 {[%emt 0:01:00]} Bf2 {[%emt 0:00:35]} 31. Qh1 {[%emt 0:01:10]} O-O-O {[%emt 0:04:20]} 32. b5 {[%emt 0:00:26]} Rh8 {[%emt 0:00:56]} 33. bxc6 {[%emt 0:04:13]} bxc6 {[%emt 0:00:20]} 34. Ne2 {[%emt 0:01:03]} Qg4 {[%emt 0:00:39]} 35. Qf1 {[%emt 0:05:28]} h4 {[%emt 0:00:20]} 36. Qh1 {[%emt 0:02:49]} h3+ {[%emt 0:00:16]} 37. Kf1 {[%emt 0:00:40]} g2+ {[%emt 0:00:44]} 0-1